bitfinex-derivatives/quotes_BTCF0:USTF0_20250713
["timestamp","ask_amount","ask_price","bid_price","bid_amount"]
[1752432376397,1.71814274,118940.0,118930.0,0.2742489]
[1752432377399,1.71814274,118940.0,118930.0,0.48798447]
[1752432378098,1.71814274,118940.0,118930.0,0.2742489]
[1752432378696,1.2906716,118940.0,118930.0,0.2742489]
[1752432379000,1.71814274,118940.0,118930.0,0.2742489]
[1752432379591,1.50440717,118940.0,118930.0,0.2742489]
[1752432379895,1.71814274,118940.0,118930.0,0.2742489]
[1752432382902,1.71814274,118940.0,118930.0,0.48798447]
[1752432383201,1.71834274,118940.0,118930.0,0.48798447]
[1752432384503,1.71834274,118940.0,118930.0,0.2742489]
[1752432385005,1.71850274,118940.0,118930.0,0.10614]
[1752432386298,1.69939756,118940.0,118930.0,0.10614]
[1752432386503,1.7189041,118940.0,118930.0,0.2742489]
[1752432386804,1.7189041,118940.0,118930.0,0.10614]
[1752432387401,1.7189041,118940.0,118930.0,0.2742489]
[1752432387605,1.7189041,118940.0,118930.0,0.10614]
[1752432391110,1.7189041,118940.0,118930.0,0.02485]
[1752432391703,0.1681089,118930.0,118920.0,0.86777289]
[1752432391902,0.50385101,118930.0,118920.0,0.31654732]
[1752432392400,0.71758658,118930.0,118920.0,0.02712572]
[1752432392702,0.71950547,118930.0,118920.0,0.00361572]
[1752432394307,0.56629575,118930.0,118920.0,0.00361572]
[1752432394699,1.14083132,118930.0,118920.0,0.00361572]
[1752432398411,0.168123,118920.0,118910.0,0.07118]
[1752432398601,1.71266112,118920.0,118910.0,0.07098]
[1752432398804,1.71458001,118920.0,118910.0,0.07098]
[1752432399812,1.71458001,118920.0,118910.0,0.02351]
[1752432400212,1.71458001,118920.0,118910.0,0.2391172]
[1752432400907,1.71458001,118920.0,118910.0,0.07098]
[1752432401305,1.71458001,118920.0,118910.0,0.2709272]
[1752432401506,1.71458001,118920.0,118910.0,0.10279]
[1752432402113,1.35378001,118920.0,118910.0,0.10279]
[1752432402310,0.92630887,118920.0,118910.0,0.10279]
[1752432402508,1.65411957,118920.0,118910.0,0.10279]
[1752432402714,1.29331957,118920.0,118910.0,0.2709272]
[1752432402916,1.29331957,118920.0,118910.0,0.10279]
[1752432403714,1.29331957,118920.0,118910.0,0.02351]
[1752432403915,1.71458001,118920.0,118910.0,0.02351]
[1752432404507,1.65411957,118920.0,118910.0,0.02351]
[1752432405607,0.1994972,118910.0,118900.0,0.50211157]
[1752432405807,0.5055982,118910.0,118900.0,0.50191157]
[1752432407218,0.5055982,118910.0,118900.0,0.48466497]
[1752432407408,0.51422868,118910.0,118900.0,0.48466497]
[1752432407807,0.5055982,118910.0,118900.0,0.10279]
[1752432408012,0.5055982,118910.0,118900.0,0.2709413]
[1752432408214,0.5055982,118910.0,118900.0,0.10279]
[1752432408610,0.5055982,118910.0,118900.0,0.48467687]
[1752432408811,0.29186263,118910.0,118900.0,0.48467687]
[1752432409011,0.5055982,118910.0,118900.0,0.48467687]
[1752432409519,0.5055982,118910.0,118900.0,0.2709413]
[1752432409715,0.5055982,118910.0,118900.0,0.48467687]
[1752432411616,0.51427061,118910.0,118900.0,0.48467687]
[1752432412319,0.30053504,118910.0,118900.0,0.48467687]
[1752432412618,0.51427061,118910.0,118900.0,0.48467687]
[1752432415521,0.51427061,118910.0,118900.0,0.2709413]
[1752432415715,0.51427061,118910.0,118900.0,0.48467687]
[1752432416018,0.30053504,118910.0,118900.0,0.48467687]
[1752432416216,1.08847061,118910.0,118900.0,0.48467687]
[1752432416817,1.08847061,118910.0,118900.0,0.10279]
[1752432417321,1.08847061,118910.0,118900.0,0.48467657]
[1752432419216,1.08847061,118910.0,118900.0,0.10279]
[1752432419421,0.51427061,118910.0,118900.0,0.270941]
[1752432419623,1.08855061,118910.0,118900.0,0.48867657]
[1752432420217,0.51427061,118910.0,118900.0,0.48867657]
[1752432420420,1.08987061,118910.0,118900.0,0.274941]
[1752432420619,1.08987061,118910.0,118900.0,0.48867657]
[1752432421823,0.51427061,118910.0,118900.0,0.48867657]
[1752432422024,1.0811982,118910.0,118900.0,0.48867657]
[1752432422219,1.0810782,118910.0,118900.0,0.274941]
[1752432422430,1.0810782,118910.0,118900.0,0.48867657]
[1752432423331,1.0810782,118910.0,118900.0,0.274941]
[1752432423525,1.0895188,118910.0,118900.0,0.48867657]
[1752432423725,1.0895188,118910.0,118900.0,0.274941]
[1752432423925,1.0895188,118910.0,118900.0,0.48867657]
[1752432425130,1.0893588,118910.0,118900.0,0.84947657]
[1752432425530,0.5140388,118910.0,118900.0,0.84947657]
[1752432425828,1.0893588,118910.0,118900.0,0.635741]
[1752432426030,1.0893588,118910.0,118900.0,0.84947657]
[1752432427428,0.5140388,118910.0,118900.0,0.84947657]
[1752432427730,1.0891988,118910.0,118900.0,0.84947657]
[1752432428526,0.5140388,118910.0,118900.0,0.84947657]
[1752432428738,1.0891988,118910.0,118900.0,0.635741]
[1752432429026,1.0891988,118910.0,118900.0,0.84947657]
[1752432429331,1.0895988,118910.0,118900.0,0.84947657]
[1752432430226,0.84465263,118910.0,118900.0,1.06321214]
[1752432430828,1.0583882,118910.0,118900.0,1.06321214]
[1752432432135,1.0582282,118910.0,118900.0,1.06321214]
[1752432432934,1.0582282,118910.0,118900.0,0.635741]
[1752432433137,1.0828982,118910.0,118900.0,1.06325214]
[1752432433538,0.86916263,118910.0,118900.0,1.06325214]
[1752432433727,1.0828982,118910.0,118900.0,0.84951657]
[1752432434036,0.29376263,118910.0,118900.0,0.84951657]
[1752432434235,0.79632263,118910.0,118900.0,1.06325214]
[1752432434439,0.84488263,118910.0,118900.0,1.06325214]
[1752432434627,1.0586182,118910.0,118900.0,1.06325214]
[1752432434822,0.86955263,118910.0,118900.0,1.06325214]
[1752432435029,1.0832882,118910.0,118900.0,1.06325214]
[1752432435229,1.0832882,118910.0,118900.0,0.84951657]
[1752432435429,1.0836482,118910.0,118900.0,0.84951657]
[1752432435835,1.0836482,118910.0,118900.0,0.635781]
[1752432436030,1.0836482,118910.0,118900.0,1.06325214]
[1752432436841,1.0836482,118910.0,118900.0,0.84951657]
[1752432440346,0.5078882,118910.0,118900.0,0.84951657]
[1752432440642,1.0843682,118910.0,118900.0,0.84951657]
[1752432442450,1.0843682,118910.0,118900.0,1.06325214]
[1752432442843,1.0843682,118910.0,118900.0,0.84951657]
[1752432443043,1.0843682,118910.0,118900.0,0.635781]
[1752432443243,1.0843682,118910.0,118900.0,0.84951657]
[1752432445553,0.5078882,118910.0,118900.0,0.84951657]
[1752432445851,1.0843282,118910.0,118900.0,0.84951657]
[1752432446355,1.0843282,118910.0,118900.0,0.635781]
[1752432446653,1.0843282,118910.0,118900.0,0.84951657]
[1752432450761,0.5078882,118910.0,118900.0,0.84951657]
[1752432450961,1.0839682,118910.0,118900.0,0.84951657]
[1752432452961,1.0838882,118910.0,118900.0,0.84951657]
[1752432453558,1.08422659,118910.0,118900.0,0.84951657]
[1752432453863,1.0843385,118910.0,118900.0,0.84951657]
[1752432457468,0.5083385,118910.0,118900.0,0.84951657]
[1752432457669,1.0839785,118910.0,118900.0,0.84951657]
[1752432460069,1.0839785,118910.0,118900.0,0.85251657]
[1752432462071,1.0839785,118910.0,118900.0,0.638781]
[1752432462474,1.0839785,118910.0,118900.0,0.85251657]
[1752432462665,0.5083385,118910.0,118900.0,0.85251657]
[1752432462961,1.0836985,118910.0,118900.0,0.85251657]
[1752432468470,0.5083385,118910.0,118900.0,0.85251657]
[1752432468669,1.0833385,118910.0,118900.0,0.85251657]
[1752432472779,1.0833385,118910.0,118900.0,0.638781]
[1752432472978,1.0833385,118910.0,118900.0,0.85251657]
[1752432473479,1.0830585,118910.0,118900.0,0.85251657]
[1752432479983,1.06344005,118910.0,118900.0,0.85251657]
[1752432480186,1.08314969,118910.0,118900.0,0.85251657]
[1752432482983,1.08314969,118910.0,118900.0,0.638781]
[1752432483184,1.08314969,118910.0,118900.0,0.85251657]
[1752432487486,0.29469412,118910.0,118900.0,1.06625214]
[1752432487684,0.02196692,118910.0,118900.0,2.42830771]
[1752432487985,0.1683227,118920.0,118910.0,0.28778022]
[1752432488184,0.0002,118920.0,118910.0,1.07605136]
[1752432488376,0.1683227,118920.0,118910.0,1.07605136]
[1752432489185,0.1683227,118920.0,118910.0,1.07805136]
[1752432490088,0.1683227,118920.0,118910.0,1.08005136]
[1752432491690,0.1683227,118920.0,118910.0,0.86631579]
[1752432493384,0.1683227,118920.0,118910.0,1.22711579]
[1752432495189,0.1683227,118920.0,118910.0,0.50551579]
[1752432495389,0.1683227,118920.0,118910.0,1.22711579]
[1752432495586,0.41299827,118920.0,118910.0,1.01338022]
[1752432495786,0.69589384,118920.0,118910.0,0.12364332]
[1752432495992,1.27001384,118920.0,118910.0,0.09180332]
[1752432496192,1.27001384,118920.0,118910.0,0.29178022]
[1752432496795,0.48215827,118920.0,118910.0,0.50551579]
[1752432496999,1.05631827,118920.0,118910.0,0.86631579]
[1752432498996,0.8425827,118920.0,118910.0,0.65258022]
[1752432499990,0.86213411,118920.0,118910.0,0.65258022]
[1752432500799,1.14735139,118920.0,118910.0,0.65258022]
[1752432502898,1.14735139,118920.0,118910.0,0.29178022]
[1752432504695,0.86213411,118920.0,118910.0,0.29178022]
[1752432504898,1.14735139,118920.0,118910.0,0.29178022]
[1752432512406,0.86213411,118920.0,118910.0,0.29178022]
[1752432512602,1.14735139,118920.0,118910.0,0.65258022]
[1752432513005,0.86213411,118920.0,118910.0,0.65258022]
[1752432513606,0.28797411,118920.0,118910.0,0.65258022]
[1752432513804,1.14731139,118920.0,118910.0,0.65258022]
[1752432514205,0.86209411,118920.0,118910.0,0.65258022]
[1752432515612,0.28797411,118920.0,118910.0,0.65258022]
[1752432515809,0.86209411,118920.0,118910.0,0.65258022]
[1752432518915,1.07600932,118920.0,118910.0,0.86649543]
[1752432519514,1.07600932,118920.0,118910.0,0.50569543]
[1752432519715,1.07600932,118920.0,118910.0,0.86649543]
[1752432521616,0.43272932,118920.0,118910.0,0.86649543]
[1752432521817,0.79293411,118920.0,118910.0,0.86649543]
[1752432522514,0.01975141,118920.0,118910.0,2.22861064]
[1752432526917,0.01975141,118920.0,118910.0,2.58941064]
[1752432527318,0.01975141,118920.0,118910.0,1.86781064]
[1752432527519,0.01975141,118920.0,118910.0,2.58941064]
[1752432536123,0.01975141,118920.0,118910.0,1.86781064]
[1752432536321,0.01975141,118920.0,118910.0,2.58941064]
[1752432537333,0.01975141,118920.0,118910.0,1.86781064]
[1752432537530,0.01975141,118920.0,118910.0,2.58941064]
[1752432539133,0.01975141,118920.0,118910.0,1.86781064]
[1752432539338,0.01975141,118920.0,118910.0,2.58941064]
[1752432542836,0.01975141,118920.0,118910.0,1.86781064]
[1752432543034,0.01975141,118920.0,118910.0,2.58941064]
[1752432543930,0.002,118930.0,118920.0,0.1681232]
[1752432544138,0.1701091,118930.0,118920.0,1.05992362]
[1752432544334,0.002,118930.0,118920.0,1.05992362]
[1752432544940,0.002,118930.0,118920.0,1.56813883]
[1752432545140,0.22855064,118950.0,118940.0,0.271265]
[1752432545339,0.22855064,118950.0,118940.0,2.20781542]
[1752432546443,0.22855064,118950.0,118940.0,2.27655835]
[1752432548244,0.1680902,118950.0,118940.0,2.27655835]
[1752432549447,0.1680902,118950.0,118940.0,2.28505886]
[1752432550246,0.63194985,118960.0,118950.0,0.2219308]
[1752432550545,0.63194985,118960.0,118950.0,0.84596601]
[1752432550747,0.41803464,118960.0,118950.0,0.84596601]
[1752432551045,0.63194985,118960.0,118950.0,0.84596601]
[1752432555951,0.65143044,118960.0,118950.0,0.84596601]
[1752432556146,0.65143044,118960.0,118950.0,0.48516601]
[1752432556347,0.65143044,118960.0,118950.0,0.84596601]
[1752432557148,0.65143044,118960.0,118950.0,0.48516601]
[1752432557949,0.65143044,118960.0,118950.0,0.84596601]
[1752432558350,0.65143044,118960.0,118950.0,0.48516601]
[1752432559052,0.65143044,118960.0,118950.0,0.84596601]
[1752432575471,0.43751523,118960.0,118950.0,0.84596601]
[1752432575670,0.65163044,118960.0,118950.0,0.84596601]
[1752432578572,0.37725479,118960.0,118950.0,0.84596601]
[1752432578863,0.66665132,118960.0,118950.0,0.84596601]
[1752432579271,0.66665132,118960.0,118950.0,0.80055386]
[1752432580970,0.45273611,118960.0,118950.0,0.80055386]
[1752432581170,0.66665132,118960.0,118950.0,0.80055386]
[1752432586572,0.65171421,118960.0,118950.0,0.80055386]
[1752432587469,0.65171421,118960.0,118950.0,0.43975386]
[1752432587672,0.65171421,118960.0,118950.0,0.80055386]
[1752432588576,0.59117,118960.0,118950.0,0.80055386]
[1752432590172,0.59069628,118960.0,118950.0,0.80055386]
[1752432591375,0.35277107,118960.0,118950.0,0.80055386]
[1752432592579,0.01920687,118960.0,118950.0,1.01446907]
[1752432592782,0.18727357,118960.0,118950.0,1.37526907]
[1752432593281,0.01920687,118960.0,118950.0,1.37526907]
[1752432597383,0.01920687,118960.0,118950.0,1.3930984]
[1752432599584,0.01920687,118960.0,118950.0,0.96526798]
[1752432599789,0.01920687,118960.0,118950.0,1.3930984]
[1752432601885,0.18727357,118960.0,118950.0,1.25956798]
[1752432602185,0.47894878,118960.0,118950.0,1.17918319]
[1752432603289,0.26503357,118960.0,118950.0,1.17918319]
[1752432605490,0.21945357,118960.0,118950.0,1.17918319]
[1752432605690,0.21945357,118960.0,118950.0,1.3930984]
[1752432605887,0.01920687,118960.0,118950.0,1.3930984]
[1752432606094,0.004,118970.0,118960.0,0.2744367]
[1752432606295,0.004,118970.0,118960.0,2.20994712]
[1752432607096,0.004,118970.0,118960.0,2.067002]
[1752432608391,0.004,118970.0,118960.0,2.3518873]
[1752432611397,0.004,118970.0,118960.0,2.067002]
[1752432613197,0.1720526,118970.0,118960.0,2.067002]
[1752432613693,0.1720526,118970.0,118960.0,2.361302]
[1752432615395,0.004,118970.0,118960.0,2.361302]
[1752432615999,0.009,118970.0,118960.0,2.361302]
[1752432617300,0.009,118970.0,118960.0,2.6461873]
[1752432618293,0.02784085,118970.0,118960.0,2.6461873]
[1752432627007,0.02784085,118970.0,118960.0,3.0069873]
[1752432627210,0.02804085,118970.0,118960.0,3.0069873]
[1752432630413,0.02804085,118970.0,118960.0,2.4372167]
[1752432630613,0.02804085,118970.0,118960.0,3.0069873]
[1752432632107,0.14137421,119000.0,118990.0,0.28957843]
[1752432632310,0.14137421,119000.0,118990.0,2.08166373]
[1752432633013,0.14137421,119000.0,118990.0,2.22393267]
[1752432633405,0.30938441,119000.0,118990.0,2.22393267]
[1752432633604,0.30938441,119000.0,118990.0,2.01035555]
[1752432633805,0.31838441,119000.0,118990.0,2.01035555]
[1752432634213,0.31838441,119000.0,118990.0,2.01878116]
[1752432634908,0.31838441,119000.0,118990.0,2.089986]
[1752432635109,0.2809902,119000.0,118990.0,2.089986]
[1752432637017,0.2759902,119000.0,118990.0,2.089986]
[1752432638822,0.2528402,119000.0,118990.0,2.089986]
[1752432639719,0.08483,119000.0,118990.0,2.089986]
[1752432639921,0.00881,119000.0,118990.0,2.089986]
[1752432640123,0.004,119010.0,119000.0,0.2239302]
[1752432640318,0.004,119010.0,119000.0,1.20232412]
[1752432641219,0.004,119010.0,119000.0,1.27117124]
[1752432641620,0.006,119010.0,119000.0,1.27117124]
[1752432642623,0.41165881,119040.0,119030.0,0.2719179]
[1752432642925,0.3511146,119040.0,119030.0,1.70285986]
[1752432643125,0.3511146,119040.0,119030.0,2.06365986]
[1752432643719,0.07802,119040.0,119030.0,2.06365986]
[1752432643929,0.2459738,119040.0,119030.0,2.06365986]
[1752432644229,0.26470477,119040.0,119030.0,2.06365986]
[1752432644930,0.28785477,119040.0,119030.0,2.06365986]
[1752432645320,0.28785477,119040.0,119030.0,1.7788779]
[1752432645725,0.28785477,119040.0,119030.0,1.7768779]
[1752432646721,0.29485477,119040.0,119030.0,1.7768779]
[1752432649631,0.27170477,119040.0,119030.0,2.06165986]
[1752432649831,0.27190477,119040.0,119030.0,2.06165986]
[1752432654337,0.27190477,119040.0,119030.0,2.07027795]
[1752432655436,0.27190477,119040.0,119030.0,2.06165986]
[1752432657642,0.27190477,119040.0,119030.0,2.0699775]
[1752432660842,0.19588477,119040.0,119030.0,2.0699775]
[1752432661939,0.18888477,119040.0,119030.0,2.0699775]
[1752432662141,0.19288477,119040.0,119030.0,2.0699775]
[1752432662548,0.02493097,119040.0,119030.0,2.0699775]
[1752432663043,0.02393097,119040.0,119030.0,2.0699775]
[1752432663748,0.1719396,119050.0,119040.0,0.2739938]
[1752432663947,0.1719396,119050.0,119040.0,0.937274]
[1752432665559,0.1739396,119050.0,119040.0,0.937274]
[1752432666455,0.2513196,119050.0,119040.0,0.937274]
[1752432666655,0.2761196,119050.0,119040.0,0.65249204]
[1752432666957,0.2513196,119050.0,119040.0,0.65249204]
[1752432667559,0.2533196,119050.0,119040.0,0.65249204]
[1752432667965,0.2533196,119050.0,119040.0,0.937274]
[1752432671165,0.2533196,119050.0,119040.0,0.9181576]
[1752432672567,0.31386381,119050.0,119040.0,0.9181576]
[1752432672968,0.2533196,119050.0,119040.0,0.9181576]
[1752432675668,0.27191272,119050.0,119040.0,0.9181576]
[1752432676869,0.27191272,119050.0,119040.0,0.63337564]
[1752432677067,0.27191272,119050.0,119040.0,0.9181576]
[1752432677268,0.33245693,119050.0,119040.0,0.9181576]
[1752432677867,0.33245693,119050.0,119040.0,0.7693202]
[1752432678065,1.00283889,119050.0,119040.0,0.24222204]
[1752432678770,1.017776,119050.0,119040.0,0.24222204]
[1752432679065,0.2701338,119040.0,119030.0,0.02434]
[1752432679369,1.50706888,119040.0,119030.0,0.02434]
[1752432679768,1.5825502,119040.0,119030.0,0.02434]
[1752432680471,1.5845502,119040.0,119030.0,0.02434]
[1752432680671,1.5847502,119040.0,119030.0,0.02434]
[1752432681571,1.5847502,119040.0,119030.0,0.1923079]
[1752432681769,0.02079312,119040.0,119030.0,2.34993182]
[1752432682070,0.02079312,119040.0,119030.0,2.71073182]
[1752432682369,0.06639701,119050.0,119040.0,0.29177267]
[1752432682673,0.06639701,119050.0,119040.0,0.93735463]
[1752432683374,0.06639701,119050.0,119040.0,0.93535463]
[1752432683571,0.07548132,119070.0,119060.0,0.2504559]
[1752432683774,0.15132132,119080.0,119070.0,0.2241918]
[1752432684074,0.07584,119080.0,119070.0,0.89502376]
[1752432684374,0.07584,119080.0,119070.0,0.89302376]
[1752432684874,0.2437378,119080.0,119070.0,0.89302376]
[1752432685074,0.2437378,119080.0,119070.0,0.89002376]
[1752432689879,0.2447378,119080.0,119070.0,0.89002376]
[1752432691484,0.2447378,119080.0,119070.0,0.6052418]
[1752432691683,0.2447378,119080.0,119070.0,0.89002376]
[1752432693081,0.2692178,119080.0,119070.0,0.08253]
[1752432693284,0.2692178,119080.0,119070.0,0.2504419]
[1752432693690,0.32951107,119080.0,119070.0,0.2504419]
[1752432694190,0.28738851,119080.0,119070.0,0.2504419]
[1752432694384,0.01917071,119080.0,119070.0,1.18080582]
[1752432694891,0.004,119090.0,119080.0,0.2098778]
[1752432695184,0.6044819,119120.0,119110.0,0.1727855]
[1752432695481,1.1771619,119120.0,119110.0,0.48113746]
[1752432696587,1.2016419,119120.0,119110.0,0.48113746]
[1752432696780,1.2016419,119120.0,119110.0,0.1914255]
[1752432696985,0.2224355,119110.0,119100.0,0.04111779]
[1752432697180,0.55295746,119110.0,119100.0,0.04111779]
[1752432697375,0.2681755,119110.0,119100.0,0.20898739]
[1752432697581,0.55295746,119110.0,119100.0,0.20898739]
[1752432698083,0.55295746,119110.0,119100.0,0.20998739]
[1752432698285,0.2681755,119110.0,119100.0,0.20998739]
[1752432698488,0.8408155,119110.0,119100.0,0.20998739]
[1752432699583,0.8407355,119110.0,119100.0,0.21491739]
[1752432699781,0.8409355,119110.0,119100.0,0.21491739]
[1752432700884,0.8409355,119110.0,119100.0,0.20998739]
[1752432701090,0.8409355,119110.0,119100.0,0.04211779]
[1752432702488,1.12571746,119110.0,119100.0,0.20998739]
[1752432702683,0.8409355,119110.0,119100.0,0.20998739]
[1752432702882,0.8409355,119110.0,119100.0,0.21491739]
[1752432703185,0.8409355,119110.0,119100.0,0.04704779]
[1752432704089,0.8409355,119110.0,119100.0,0.21491739]
[1752432704288,0.8409355,119110.0,119100.0,0.04704779]
[1752432705986,1.48651746,119110.0,119100.0,0.04211779]
[1752432706193,1.48651746,119110.0,119100.0,0.001]
[1752432706789,1.6724737,119110.0,119100.0,0.001]
[1752432708487,1.6724737,119110.0,119100.0,0.02457]
[1752432708688,0.64721174,119110.0,119100.0,0.1924396]
[1752432708889,1.19577174,119110.0,119100.0,0.48215156]
[1752432709193,0.83501174,119110.0,119100.0,0.48523156]
[1752432709492,0.83477253,119110.0,119100.0,0.48523156]
[1752432711098,0.83477253,119110.0,119100.0,0.53357991]
[1752432711592,0.83477253,119110.0,119100.0,0.2004496]
[1752432712590,0.83477253,119110.0,119100.0,0.2024496]
[1752432713594,0.83477253,119110.0,119100.0,0.1993696]
[1752432715096,0.83477253,119110.0,119100.0,0.18026102]
[1752432715295,0.85931253,119110.0,119100.0,0.18026102]
[1752432715591,0.28623253,119110.0,119100.0,0.18026102]
[1752432715794,0.85907253,119110.0,119100.0,0.18026102]
[1752432717389,0.85907253,119110.0,119100.0,0.51339133]
[1752432718498,0.9193658,119110.0,119100.0,0.51339133]
[1752432720699,1.25249611,119110.0,119100.0,0.17533092]
[1752432721393,0.9193658,119110.0,119100.0,0.17533092]
[1752432723194,0.9193658,119110.0,119100.0,0.15622319]
[1752432725303,0.85907253,119110.0,119100.0,0.18106319]
[1752432726999,0.85907253,119110.0,119100.0,0.15622319]
[1752432727199,0.91949874,119110.0,119100.0,0.15622319]
[1752432727399,0.85907253,119110.0,119100.0,0.15622319]
[1752432727599,1.21987253,119110.0,119100.0,0.15622319]
[1752432728504,1.28029863,119110.0,119100.0,0.15622319]
[1752432729699,1.28029863,119110.0,119100.0,0.18106319]
[1752432730708,1.28029863,119110.0,119100.0,0.5191235]
[1752432730902,1.28029863,119110.0,119100.0,0.18599319]
[1752432731107,1.28029863,119110.0,119100.0,0.47029493]
[1752432734008,1.21987253,119110.0,119100.0,0.47029493]
[1752432735008,1.21987253,119110.0,119100.0,0.46536493]
[1752432735502,1.21987253,119110.0,119100.0,0.44052493]
[1752432735705,0.2676196,119100.0,119090.0,0.18550537]
[1752432735902,0.56991837,119100.0,119090.0,0.18530537]
[1752432736197,0.93071837,119100.0,119090.0,0.18530537]
[1752432736603,0.64641663,119100.0,119090.0,0.18530537]
[1752432737811,0.64641663,119100.0,119090.0,0.18830537]
[1752432738410,0.64641663,119100.0,119090.0,0.1708812]
[1752432739610,0.64641663,119100.0,119090.0,0.45518294]
[1752432739813,0.64641663,119100.0,119090.0,0.1708812]
[1752432740012,0.64641663,119100.0,119090.0,0.45518294]
[1752432741808,0.64641663,119100.0,119090.0,0.1708812]
[1752432743312,0.64641663,119100.0,119090.0,0.003]
[1752432743814,0.93071837,119100.0,119090.0,0.003]
[1752432746010,0.91292134,119100.0,119090.0,0.003]
[1752432750518,0.2679937,119090.0,119080.0,0.00187947]
[1752432750714,1.48573544,119090.0,119080.0,0.00167947]
[1752432751515,1.48573544,119090.0,119080.0,0.00267947]
[1752432751717,1.48573544,119090.0,119080.0,0.00667947]
[1752432754721,0.6289937,119090.0,119080.0,0.17457727]
[1752432755021,1.2014337,119090.0,119080.0,0.17457727]
[1752432755714,1.2014337,119090.0,119080.0,0.00667947]
[1752432755911,1.2014337,119090.0,119080.0,0.17457727]
[1752432756116,1.2014337,119090.0,119080.0,0.00667947]
[1752432756314,1.2014337,119090.0,119080.0,0.17457717]
[1752432758124,1.2014337,119090.0,119080.0,0.00667947]
[1752432758423,1.2014337,119090.0,119080.0,0.17457727]
[1752432759123,0.6289937,119090.0,119080.0,0.17457727]
[1752432759319,1.2014737,119090.0,119080.0,0.17457727]
[1752432759622,1.2014737,119090.0,119080.0,0.00667947]
[1752432761020,1.21942815,119090.0,119080.0,0.00667947]
[1752432761624,1.21942815,119090.0,119080.0,0.17457717]
[1752432764427,0.85862815,119090.0,119080.0,0.17457717]
[1752432764628,1.21942815,119090.0,119080.0,0.17457717]
[1752432765728,1.50372989,119090.0,119080.0,0.17457717]
[1752432766439,1.51226384,119090.0,119080.0,0.17457717]
[1752432766639,1.51226384,119090.0,119080.0,0.00667947]
[1752432767741,1.50372989,119090.0,119080.0,0.17457717]
[1752432768843,1.56407278,119090.0,119080.0,0.17457717]
[1752432770739,1.56407278,119090.0,119080.0,0.00667947]
[1752432771239,1.20327278,119090.0,119080.0,0.00667947]
[1752432771744,1.56407278,119090.0,119080.0,0.00667947]
[1752432775347,1.50372989,119090.0,119080.0,0.00667947]
[1752432777346,1.56419551,119090.0,119080.0,0.00667947]
[1752432778144,1.20339551,119090.0,119080.0,0.00667947]
[1752432778348,1.56419551,119090.0,119080.0,0.00667947]
[1752432780451,1.56419551,119090.0,119080.0,0.17457717]
[1752432780851,1.27989377,119090.0,119080.0,0.17457717]
[1752432781553,0.70741377,119090.0,119080.0,0.49158891]
[1752432781751,0.85854815,119090.0,119080.0,0.85238891]
[1752432781951,0.85854815,119090.0,119080.0,0.49158891]
[1752432782452,0.28614815,119090.0,119080.0,0.50886694]
[1752432782651,0.28614815,119090.0,119080.0,1.16004868]
[1752432782846,0.85854815,119090.0,119080.0,1.16004868]
[1752432783450,0.85854815,119090.0,119080.0,0.87574694]
[1752432788752,0.28614815,119090.0,119080.0,0.87574694]
[1752432790559,0.28614815,119090.0,119080.0,0.86966694]
[1752432802161,0.28614815,119090.0,119080.0,0.50886694]
[1752432802360,0.28614815,119090.0,119080.0,0.86966694]
[1752432802860,0.28614815,119090.0,119080.0,0.50886694]
[1752432803057,0.28614815,119090.0,119080.0,1.01193182]
[1752432807065,0.28620179,119090.0,119080.0,1.01193182]
[1752432808860,0.28620179,119090.0,119080.0,0.65113182]
[1752432809164,0.28620179,119090.0,119080.0,1.01193182]
[1752432813065,0.4994851,119090.0,119080.0,1.58417182]
[1752432818175,0.55995072,119090.0,119080.0,1.58417182]
[1752432818371,0.55995072,119090.0,119080.0,0.0566675]
[1752432818677,0.71276841,119090.0,119080.0,0.0239575]
[1752432818878,0.4994851,119090.0,119080.0,0.00667947]
[1752432822577,1.07356841,119090.0,119080.0,0.00667947]
[1752432822776,1.13403403,119090.0,119080.0,0.00667947]
[1752432823277,0.8602851,119090.0,119080.0,0.00667947]
[1752432823782,1.07356841,119090.0,119080.0,0.00667947]
[1752432825279,0.8602851,119090.0,119080.0,0.00667947]
[1752432825480,1.07356841,119090.0,119080.0,0.00667947]
[1752432826582,0.8602851,119090.0,119080.0,0.00667947]
[1752432838192,1.0717251,119090.0,119080.0,0.62612339]
[1752432838489,1.0717251,119090.0,119080.0,0.41284008]
[1752432840489,1.0717251,119090.0,119080.0,0.77364008]
[1752432840788,1.0717251,119090.0,119080.0,0.03165947]
[1752432840988,1.0717251,119090.0,119080.0,0.24494278]
[1752432842888,1.0717251,119090.0,119080.0,0.21996278]
[1752432843090,1.4325251,119090.0,119080.0,0.00667947]
[1752432843787,1.64580841,119090.0,119080.0,0.00667947]
[1752432844491,0.1678973,119080.0,119070.0,0.0002]
[1752432844702,0.2702714,119070.0,119060.0,0.01797959]
[1752432844994,1.0739628,119070.0,119060.0,0.01777959]
[1752432845895,1.08219705,119070.0,119060.0,0.01777959]
[1752432846194,1.08219705,119070.0,119060.0,0.02277959]
[1752432847084,1.14523668,119070.0,119060.0,0.21568509]
[1752432847495,0.92747586,119070.0,119060.0,0.21568509]
[1752432847695,0.92747586,119070.0,119060.0,0.21868509]
[1752432849597,0.92747586,119070.0,119060.0,0.57948509]
[1752432850498,0.92747586,119070.0,119060.0,0.21868509]
[1752432850797,0.92747586,119070.0,119060.0,0.57948509]
[1752432850997,0.92747586,119070.0,119060.0,0.21868509]
[1752432851698,0.92747586,119070.0,119060.0,0.57948509]
[1752432851998,0.92747586,119070.0,119060.0,0.21868509]
[1752432852301,0.92747586,119070.0,119060.0,0.05075959]
[1752432852501,1.21203305,119070.0,119060.0,0.05075959]
[1752432852703,1.21203305,119070.0,119060.0,0.02577959]
[1752432853502,1.57283305,119070.0,119060.0,0.02577959]
[1752432854704,1.55482496,119070.0,119060.0,0.02577959]
[1752432857606,1.57290639,119070.0,119060.0,0.02577959]
[1752432858998,1.63331841,119070.0,119060.0,0.02577959]
[1752432863309,1.27251841,119070.0,119060.0,0.02577959]
[1752432863506,1.63331841,119070.0,119060.0,0.02577959]
[1752432864207,1.27251841,119070.0,119060.0,0.02577959]
[1752432864404,1.63331841,119070.0,119060.0,0.02577959]
[1752432866901,1.77565996,119070.0,119060.0,0.02577959]
[1752432868312,1.56221059,119070.0,119060.0,0.02577959]
[1752432868805,1.50179857,119070.0,119060.0,0.02577959]
[1752432869513,1.50178362,119070.0,119060.0,0.02577959]
[1752432873423,1.14098362,119070.0,119060.0,0.02577959]
[1752432873716,1.50178362,119070.0,119060.0,0.02577959]
[1752432876128,1.14098362,119070.0,119060.0,0.02577959]
[1752432876322,0.05531,119060.0,119040.0,0.00361208]
[1752432876520,1.62838834,119050.0,119040.0,0.00361208]
[1752432876711,1.64645482,119050.0,119040.0,0.00361208]
[1752432876911,0.1679678,119030.0,119020.0,0.01729225]
[1752432877112,1.64648302,119030.0,119020.0,0.01729225]
[1752432877825,0.2684919,119020.0,119010.0,0.02315]
[1752432878014,1.07425712,119020.0,119010.0,0.04388]
[1752432878318,0.28655838,119020.0,119010.0,0.80760226]
[1752432878515,0.2131819,119020.0,119010.0,1.02105163]